bitfinex/quotes_ETHUSD_20241023
["timestamp","ask_amount","ask_price","bid_price","bid_amount"]
[1729644800103,3.44465,2612.8,2612.5,1.20545941]
[1729644800302,3.44479,2612.7,2612.5,1.20545941]
[1729644800465,3.44479,2612.7,2612.4,1.20545941]
[1729644800659,5.13433456,2612.9,2612.4,1.20545941]
[1729644800660,6.88908,2612.9,2612.4,1.20545941]
[1729644800864,3.44399,2613.3,2612.7,2.48368456]
[1729644801108,3.44425,2613.1,2612.7,1.99935941]
[1729644801289,3.44425,2613.1,2612.7,1.20545941]
[1729644801510,3.44425,2613.1,2612.6,4.65017941]
[1729644801887,4.20108,2613.2,2612.7,1.28200077]
[1729644802125,0.07387239,2613.1,2612.7,1.28200077]
[1729644802321,4.20108,2613.2,2612.7,0.07654136]
[1729644802521,0.07387239,2613.1,2613.0,3.44424]
[1729644802677,3.44355,2613.6,2613.0,4.78812]
[1729644802875,0.07417724,2613.5,2613.1,3.99416]
[1729644803072,0.07417724,2613.5,2613.2,3.44403]
[1729644803374,0.757,2613.8,2613.3,3.44391]
[1729644803579,0.07436561,2613.4,2613.3,5.13369456]
[1729644803816,4.20026,2613.8,2613.3,3.44391]
[1729644804016,4.20026,2613.8,2613.3,5.13369456]
[1729644804017,0.07436561,2613.4,2613.3,5.13369456]
[1729644804234,0.757,2613.8,2613.3,2.71383226]
[1729644804431,0.07436561,2613.4,2613.3,9.31995184]
[1729644804579,3.44229,2614.6,2614.1,3.44277]
[1729644804780,3.44244,2614.5,2613.9,3.44305]
[1729644805015,4.27163498,2614.5,2613.9,4.23695]
[1729644805213,3.44289,2614.1,2613.6,1.9942767]
[1729644805374,3.44289,2614.1,2613.6,0.7939]
[1729644805579,0.06723924,2614.0,2613.6,4.2374]
[1729644805895,3.44289,2614.1,2613.6,4.2374]
[1729644806088,3.44289,2614.1,2613.6,5.92718456]
[1729644806295,0.0672344,2614.0,2613.6,5.00276574]
[1729644806500,0.8242344,2614.0,2613.3,1.3439]
[1729644806682,6.88634,2613.9,2613.2,0.55]
[1729644806877,6.88634,2613.9,2613.3,3.4439]
[1729644806878,0.06748535,2613.8,2613.3,3.4439]
[1729644807120,3.51077535,2613.8,2613.3,3.4439]
[1729644807419,3.4434,2613.7,2613.2,0.55]
[1729644807649,3.4434,2613.7,2613.2,4.817236]
[1729644807930,0.06754473,2613.6,2613.3,3.5203498]
[1729644808108,3.44313,2613.9,2613.3,3.44383]
[1729644808421,0.06739529,2613.5,2613.3,3.44383]
[1729644808621,3.44313,2613.9,2613.4,0.07651969]
[1729644809224,6.88633,2613.9,2613.3,4.3493336]
[1729644810322,3.44313,2613.9,2613.3,4.3493336]
[1729644810678,6.88633,2613.9,2613.4,0.07651969]
[1729644810881,3.44313,2613.9,2613.4,0.07651969]
[1729644811123,0.757,2614.0,2613.4,0.07651969]
[1729644812020,3.44328,2613.8,2613.4,0.07651969]
[1729644814328,3.44328,2613.8,2613.3,4.3493336]
[1729644815661,3.44328,2613.8,2613.4,0.07651988]
[1729644817363,0.0674003,2613.7,2613.4,0.07651988]
[1729644817576,3.44328,2613.8,2613.4,0.07651988]
[1729644817734,0.0673984,2613.6,2613.3,0.9055036]
[1729644818069,3.4434,2613.7,2613.3,0.9055036]
[1729644818366,6.88661,2613.8,2613.2,3.99405]
[1729644818548,0.0674287,2613.6,2613.2,3.99405]
[1729644818749,3.4434,2613.7,2613.2,3.99405]
[1729644818955,0.06742559,2613.5,2613.2,3.99405]
[1729644819153,3.4434,2613.7,2613.2,3.99405]
[1729644819349,0.06742248,2613.4,2613.2,4.817252]
[1729644819568,3.4434,2613.7,2613.2,4.817252]
[1729644819771,0.06741937,2613.3,2613.2,4.817252]
[1729644819943,3.4434,2613.7,2613.2,4.89377237]
[1729644820167,0.06741937,2613.3,2613.2,4.817252]
[1729644820464,3.4434,2613.7,2613.2,4.89377238]
[1729644820639,3.4434,2613.7,2613.3,0.91317424]
[1729644820971,0.0674287,2613.6,2613.3,0.91317424]
[1729644821142,0.0674287,2613.6,2613.4,0.07652019]
[1729644821727,0.0674287,2613.6,2613.3,0.91317424]
[1729644821940,0.757,2614.0,2613.3,0.91317424]
[1729644821941,3.44342,2613.7,2613.3,0.91317424]
[1729644822135,0.06742052,2613.5,2613.3,0.91317424]
[1729644822364,3.44352,2613.6,2613.3,0.91317424]
[1729644822543,0.06741741,2613.4,2613.3,0.91317424]
[1729644822728,3.44352,2613.6,2613.3,0.91317424]
[1729644822928,0.06739739,2613.4,2613.3,0.91317424]
[1729644823269,3.44352,2613.6,2613.3,0.91317424]
[1729644823430,0.0673987,2613.4,2613.3,0.91317424]
[1729644823626,3.44329,2613.8,2613.3,4.35705424]
[1729644823876,0.0673987,2613.4,2613.3,3.52040232]
[1729644824174,0.06741741,2613.4,2613.3,3.52040232]
[1729644824336,3.44329,2613.8,2613.3,3.52040232]
[1729644824526,0.0674162,2613.4,2613.3,3.52040232]
[1729644824728,3.44329,2613.8,2613.3,6.96422232]
[1729644824970,3.44329,2613.8,2613.4,0.75142223]
[1729644825231,6.88663,2613.8,2613.4,0.75142223]
[1729644825474,3.44339,2613.7,2613.4,0.75142223]
[1729644829282,3.44354,2613.6,2613.2,0.55]
[1729644829454,3.44339,2613.7,2613.2,0.55]
[1729644829658,3.44339,2613.7,2613.2,3.99405]
[1729644830050,3.44339,2613.7,2613.3,0.07652181]
[1729644830381,3.44339,2613.7,2613.2,3.99405]
[1729644830585,3.44339,2613.7,2613.3,0.07652183]
[1729644830888,6.88687,2613.7,2613.2,4.817254]
[1729644831878,3.44339,2613.7,2613.2,1.373204]
[1729644832082,3.44354,2613.6,2613.2,1.373204]
[1729644832286,0.06756285,2613.6,2613.2,4.817214]
[1729644832493,0.06756285,2613.6,2613.3,0.98205081]
[1729644834873,0.06756285,2613.6,2613.3,0.9055284]
[1729644835090,0.06756285,2613.6,2613.3,0.98205033]
[1729644835685,0.06756285,2613.6,2613.3,0.9055284]
[1729644835891,0.06756285,2613.6,2613.3,4.42586033]
[1729644836200,0.7741,2613.5,2612.7,0.7846]
[1729644836490,5.9069436,2613.1,2612.7,0.7846]
[1729644836658,3.44432,2613.0,2612.6,3.44484]
[1729644836994,3.51195997,2612.9,2612.6,0.85785136]
[1729644837161,0.06750997,2612.9,2612.6,4.30267136]
[1729644837364,4.21837,2613.1,2612.7,0.07654095]
[1729644837561,0.06751066,2612.8,2612.7,0.07654095]
[1729644837766,4.21837,2613.1,2612.7,0.76178854]
[1729644838081,0.06738347,2612.8,2612.7,0.76178854]
[1729644838286,3.44433,2613.0,2612.7,0.68524759]
[1729644838593,3.44447,2612.9,2612.5,0.7846]
[1729644838891,0.06739133,2612.9,2612.5,0.7846]
[1729644839061,3.44464,2612.8,2612.5,0.7846]
[1729644839261,6.8893,2612.8,2612.5,0.7846]
[1729644839446,0.06717725,2612.7,2612.3,0.7846]
[1729644839646,0.06717725,2612.7,2612.3,1.8322059]
[1729644839949,0.7741,2613.1,2612.1,4.23008]
[1729644839950,4.28618143,2612.6,2612.1,4.23008]
[1729644840151,7.73113143,2612.6,2612.1,4.23008]
[1729644840384,7.73113143,2612.6,2612.2,0.07655442]
[1729644840549,4.28618143,2612.6,2612.2,0.07655442]
[1729644841665,3.44498,2612.5,2612.1,0.7846]
[1729644842066,0.06711085,2612.4,2612.1,0.7846]
[1729644842279,3.44498,2612.5,2612.1,0.7846]
[1729644842459,3.4451,2612.4,2612.0,0.55]
[1729644842663,3.4451,2612.4,2611.9,4.23029]
[1729644842993,3.51216573,2612.3,2611.9,0.7846]
[1729644843175,3.44544,2612.2,2611.7,5.4309767]
[1729644843490,4.28644003,2612.2,2611.8,0.7031479]
[1729644843689,3.4456,2612.1,2611.8,0.7031479]
[1729644844190,0.06684834,2612.0,2611.8,0.7031479]
[1729644844392,0.06684834,2612.0,2611.7,0.7846]
[1729644844763,0.06684834,2612.0,2611.5,0.8154]
[1729644844764,3.51250834,2612.0,2611.5,0.8154]
[1729644845076,3.51250834,2612.0,2611.5,4.26168]
[1729644846788,3.44566,2612.0,2611.5,0.8154]
[1729644846993,3.44593,2611.8,2611.3,4.26185]
[1729644847293,0.06672985,2611.9,2611.4,4.41385065]
[1729644847595,0.06672674,2611.8,2611.4,4.41385065]
[1729644848388,3.44577,2611.9,2611.4,4.41385065]
[1729644848559,0.06672362,2611.7,2611.4,4.41385065]
[1729644848905,3.44577,2611.9,2611.5,0.52292507]
[1729644849202,0.06672674,2611.8,2611.4,4.41385065]
[1729644850795,0.06672674,2611.8,2611.4,7.86020065]
[1729644850956,0.06672674,2611.8,2611.5,3.44627]
[1729644851154,3.4457,2612.0,2611.4,4.33723367]
[1729644851495,0.06672362,2611.7,2611.4,0.96746065]
[1729644851821,3.4453,2612.3,2611.4,0.96746065]
[1729644851822,3.44526,2612.3,2611.8,0.55]
[1729644851992,3.44526,2612.3,2611.8,0.62656497]
[1729644852202,3.44526,2612.3,2611.8,4.07244497]
[1729644852382,4.20286,2612.5,2611.9,6.87559262]
[1729644852383,0.7578,2612.5,2611.9,6.87559262]
[1729644852587,0.7578,2612.5,2612.0,3.44555]
[1729644852784,4.20281,2612.5,2612.0,3.44555]
[1729644853041,0.7578,2612.5,2612.1,4.33745291]
[1729644853215,3.44487,2612.6,2612.1,4.33737291]
[1729644853403,0.7578,2612.7,2612.2,3.44529]
[1729644853585,3.44485,2612.6,2612.1,4.26081]
[1729644853929,3.44485,2612.6,2611.9,7.70730838]
[1729644853930,3.44511,2612.4,2611.9,5.09281576]
[1729644854288,3.44511,2612.4,2611.9,8.53848576]
[1729644854492,3.44511,2612.4,2612.0,0.07655968]
[1729644855300,3.44485,2612.6,2612.0,3.52217968]
[1729644855487,3.44485,2612.6,2612.0,0.07655968]
[1729644855828,3.44485,2612.6,2612.1,3.44547]
[1729644856485,0.7578,2612.7,2612.2,0.07655888]
[1729644856690,0.7578,2612.7,2612.3,4.26063]
[1729644856890,3.44465,2612.8,2612.3,7.70579]
[1729644857397,3.44465,2612.8,2612.3,4.26056]
[1729644857746,6.88933,2612.8,2612.3,4.26056]
[1729644857886,6.44407,2613.2,2612.4,3.44499]
[1729644858087,0.7578,2613.4,2613.0,3.44429]
[1729644858630,3.44366,2613.5,2613.0,3.44429]
[1729644858927,3.4438,2613.4,2612.9,0.07654024]
[1729644859134,3.4438,2613.4,2612.9,3.99444]
[1729644859340,3.4438,2613.4,2612.9,3.44444]
[1729644861714,3.44394,2613.3,2612.9,0.55]
[1729644862037,3.44394,2613.3,2612.8,4.25988]
[1729644862038,0.06229157,2613.2,2612.8,4.25988]
[1729644862238,3.44394,2613.3,2612.8,4.25988]
[1729644862402,0.06237442,2613.1,2612.8,7.70439]
[1729644862604,4.20135,2613.6,2613.1,3.44415]
[1729644862803,0.06237131,2613.0,2612.9,3.52096657]
[1729644863040,3.44366,2613.5,2613.0,3.44427]
[1729644863342,3.44366,2613.5,2613.1,0.07652954]
[1729644863913,3.44366,2613.5,2613.0,3.44427]
[1729644864119,3.44366,2613.5,2613.1,0.07652954]
[1729644864344,3.44366,2613.5,2613.0,3.44427]
[1729644864543,6.88739,2613.5,2613.0,3.44427]
[1729644864853,6.88739,2613.5,2613.1,0.07652955]
[1729644865061,6.88739,2613.5,2612.9,7.43879]
[1729644865214,3.44366,2613.5,2613.0,0.07652956]
[1729644865616,6.88739,2613.5,2613.0,0.07652956]
[1729644866077,6.8874,2613.5,2612.9,7.43873]
[1729644866359,6.8874,2613.5,2613.0,0.07652957]
[1729644866557,6.8874,2613.5,2613.1,0.07652958]
[1729644867357,3.44366,2613.5,2613.1,0.07652958]
[1729644867655,6.88741,2613.5,2613.1,0.07652958]
[1729644868560,3.44379,2613.4,2613.1,0.0765296]
[1729644868768,3.44379,2613.4,2613.0,0.0765296]
[1729644868969,3.44379,2613.4,2612.9,3.99444]
[1729644869165,3.44379,2613.4,2612.8,0.8154]
[1729644869457,4.24968,2613.2,2612.8,0.8154]
[1729644869618,0.8056,2613.2,2612.8,4.25997]
[1729644870446,0.8056,2613.2,2612.9,3.5209752]
[1729644870651,4.24939,2613.4,2612.9,3.5209752]
[1729644871039,7.69327,2613.4,2612.9,3.5209752]
[1729644871566,4.24939,2613.4,2612.9,3.5209752]
[1729644872063,3.44392,2613.3,2612.9,3.5209752]
[1729644872775,4.24939,2613.4,2612.9,3.5209752]
[1729644873761,4.24939,2613.4,2612.9,4.29907372]
[1729644873961,3.44379,2613.4,2612.9,4.29899372]
[1729644874178,3.44359,2613.6,2613.0,3.44431]
[1729644874377,3.44366,2613.5,2613.0,3.44431]
[1729644874554,3.44359,2613.6,2612.9,4.29899372]
[1729644874555,3.44381,2613.4,2612.9,4.29899372]
[1729644875846,3.44381,2613.4,2613.0,3.4443]
[1729644876578,3.44366,2613.5,2613.0,3.4443]
[1729644876978,0.06274792,2613.4,2613.0,3.4443]
[1729644879555,3.50656792,2613.4,2612.9,4.22245852]
[1729644879762,0.06274792,2613.4,2613.0,3.5207723]
[1729644880068,0.06274792,2613.4,2613.1,0.8164]
[1729644882800,3.50653792,2613.4,2613.1,0.8164]
[1729644883764,3.50653792,2613.4,2613.0,0.0765323]
[1729644884362,3.44393,2613.3,2612.9,1.59449852]
[1729644884691,0.06274481,2613.3,2613.0,3.44421]
[1729644884988,3.44379,2613.4,2613.0,3.44421]
[1729644885712,0.06226838,2613.3,2613.0,3.44421]
[1729644885864,0.06226838,2613.3,2612.9,0.8164]
[1729644886199,0.06226838,2613.3,2612.9,4.26083]
[1729644886698,0.87616838,2613.3,2612.9,4.26083]
[1729644890915,6.00837719,2613.3,2612.9,0.8164]
[1729644891707,3.44406,2613.2,2612.8,3.44449]
[1729644892113,0.06226215,2613.1,2612.8,3.44449]
[1729644893101,0.06226215,2613.1,2612.7,4.2722]
[1729644894821,0.06226215,2613.1,2612.8,3.44454]
[1729644895689,5.94608881,2613.3,2612.8,3.5210768]
[1729644895889,0.06225904,2613.0,2612.8,3.5210768]
[1729644896223,5.94608881,2613.3,2612.8,4.30040448]
[1729644896224,0.06225592,2612.9,2612.8,4.30040448]
[1729644896391,5.94608881,2613.3,2612.8,4.30040448]
[1729644896572,0.06222559,2612.9,2612.8,3.5210768]
[1729644896776,5.94608881,2613.3,2612.8,3.5210768]
[1729644897022,0.06222559,2612.9,2612.8,3.5210768]
[1729644897187,5.94608881,2613.3,2612.8,3.5210768]
[1729644897400,0.06222559,2612.9,2612.8,3.5210768]
[1729644897723,5.94608881,2613.3,2612.8,4.42008595]
[1729644897870,5.94608881,2613.3,2612.8,3.5210768]
[1729644897871,0.06222559,2612.9,2612.8,3.5210768]
[1729644898074,5.94608881,2613.3,2612.8,3.5210768]
[1729644898275,0.06222559,2612.9,2612.8,3.44454]
[1729644898527,5.94608881,2613.3,2612.8,3.44454]
[1729644899114,3.50629493,2613.2,2612.8,3.44454]
[1729644900119,6.95045493,2613.2,2612.8,1.19681472]
[1729644900793,3.50629493,2613.2,2612.8,1.19681472]
[1729644901396,3.50629493,2613.2,2612.7,1.19681472]
[1729644901397,5.13244881,2613.1,2612.7,1.19681472]
[1729644901595,5.19468144,2613.1,2612.8,1.19681472]
[1729644902018,3.50642263,2613.1,2612.8,1.19681472]
[1729644902203,3.50642263,2613.1,2612.9,1.19681472]
[1729644902403,5.91916881,2613.0,2612.8,1.19681472]
[1729644902595,5.98139326,2613.0,2612.8,1.19681472]
[1729644902795,4.29313445,2613.0,2612.8,1.19681472]
[1729644903284,3.44444,2612.9,2612.7,1.19681472]
[1729644903483,3.44444,2612.9,2612.6,1.19681472]
[1729644903791,3.44444,2612.9,2612.7,1.19681472]
[1729644903792,0.06221823,2612.8,2612.7,1.19681472]
[1729644904322,0.06221823,2612.8,2612.6,1.19681472]
[1729644904975,0.06221823,2612.8,2612.5,1.19681472]
[1729644906581,0.06221823,2612.8,2612.7,5.13296881]
[1729644906810,0.7704,2613.3,2612.7,5.66700162]
[1729644907028,0.06215282,2613.2,2613.0,0.80283034]
[1729644907319,3.44374,2613.5,2613.1,3.44418]
[1729644907320,0.7704,2613.5,2613.1,3.44418]
[1729644907526,5.90231881,2613.5,2613.0,1.69366065]
[1729644907881,3.44347,2613.7,2612.9,0.80283034]
[1729644907882,3.44431,2613.0,2612.9,0.80283034]
[1729644908030,5.90296881,2613.0,2612.6,0.80283034]
[1729644908187,0.7704,2613.0,2612.6,0.80283034]
[1729644908698,0.7704,2613.0,2612.7,4.24754034]
[1729644909628,0.7704,2613.0,2612.7,0.80283034]
[1729644910599,0.7704,2613.0,2612.6,5.06197034]
[1729644910804,0.7704,2613.0,2612.7,0.80283034]
[1729644911344,0.7704,2613.0,2612.7,4.24754034]
[1729644912941,0.7704,2613.0,2612.7,3.44471]
[1729644913099,0.7704,2613.0,2612.7,4.24754034]
[1729644913298,0.7704,2613.0,2612.7,3.44471]
[1729644913737,0.7704,2613.0,2612.6,1.61713034]
[1729644913941,4.21472,2613.0,2612.6,0.80283034]
[1729644914098,0.7704,2613.0,2612.6,0.80283034]
[1729644917010,0.7704,2613.0,2612.6,4.24763034]
[1729644918650,0.7704,2613.0,2612.6,0.80283034]
[1729644918805,0.7704,2613.0,2612.7,3.44469]
[1729644919011,0.7704,2613.0,2612.7,3.44464]
[1729644920015,0.7704,2613.0,2612.6,3.44483]
[1729644920507,0.7704,2613.0,2612.6,4.24766034]
[1729644920707,0.7704,2613.0,2612.6,3.44483]
[1729644920925,0.7704,2613.0,2612.6,4.24766034]
[1729644921521,4.21473,2613.0,2612.5,0.80283034]
[1729644921722,3.43044819,2613.1,2612.4,0.80283034]
[1729644922051,0.7642,2612.7,2612.4,0.80283034]
[1729644922234,0.05807713,2612.6,2612.4,0.80283034]
[1729644922854,0.05807713,2612.6,2612.3,4.24797034]
[1729644923271,0.05807713,2612.6,2612.4,0.80283034]
[1729644924279,0.05807713,2612.6,2612.3,4.24797034]
[1729644925447,0.05807713,2612.6,2612.3,5.37658722]
[1729644928037,0.05807713,2612.6,2612.3,4.24797034]
[1729644928247,0.05663081,2612.6,2612.3,3.44514]
[1729644928477,0.05663081,2612.6,2612.3,4.24797034]
[1729644928840,0.05663081,2612.6,2612.3,3.44514]
[1729644929041,0.7642,2612.7,2612.3,3.44514]
[1729644929242,0.05784656,2612.6,2612.3,3.44514]
[1729644934591,0.05784656,2612.6,2612.3,4.58308563]
[1729644936064,0.05784656,2612.6,2612.3,5.38591597]
[1729644936393,0.05784656,2612.6,2612.3,4.58308563]
[1729644936690,0.7774,2613.3,2612.7,3.99463]
[1729644936893,0.7774,2613.3,2612.8,6.49264011]
[1729644937098,0.7774,2613.3,2612.8,6.41610588]
[1729644937596,4.22132,2613.3,2612.8,6.41610588]
[1729644937945,0.7774,2613.3,2612.8,6.41610588]
[1729644939212,0.7774,2613.3,2612.8,4.72706547]
[1729644939854,0.7774,2613.3,2612.9,3.44443]
[1729644940250,0.7774,2613.3,2612.9,4.43690042]
[1729644941375,0.7774,2613.3,2613.0,3.44425]
[1729644944073,0.7774,2613.3,2612.9,0.99247042]
[1729644944074,0.04622121,2613.2,2612.9,0.99247042]
[1729644944290,5.91043041,2613.3,2612.8,4.72706547]
[1729644944486,0.04621809,2613.1,2612.8,4.72706547]
[1729644944688,5.91043041,2613.3,2612.8,4.72706547]
[1729644944905,0.04621498,2613.0,2612.8,4.72706547]
[1729644945207,5.91043041,2613.3,2612.8,4.72706547]
[1729644945404,2.46644041,2613.3,2612.9,0.80203247]
[1729644945633,2.46644041,2613.3,2612.9,4.89440389]
[1729644946329,2.46644041,2613.3,2612.9,4.09237142]
[1729644946537,0.7774,2613.3,2613.0,3.44431]
[1729644946711,6.88726,2613.6,2613.0,4.25531]
[1729644946712,5.91011041,2613.5,2613.0,4.25531]
[1729644947139,3.44381,2613.4,2613.0,4.25531]
[1729644947339,5.13285041,2613.4,2613.0,4.25531]
[1729644947832,5.13285041,2613.4,2613.0,0.811]
[1729644949445,5.13285041,2613.4,2613.0,4.25528]
[1729644950102,5.13285041,2613.4,2613.0,0.811]
[1729644951396,8.57671041,2613.4,2613.0,0.811]
[1729644952013,0.04494527,2613.3,2613.0,0.811]
[1729644952225,1.73398568,2613.3,2613.0,0.811]
[1729644952425,0.04494527,2613.3,2613.0,0.811]
[1729644953882,1.73398568,2613.3,2613.0,0.811]
[1729644954679,5.17791568,2613.3,2613.0,0.811]
[1729644959487,0.04494527,2613.3,2613.1,4.21398]
[1729644959691,3.44354,2613.6,2613.2,3.44405]
[1729644959849,0.04493022,2613.2,2613.1,4.21397]
[1729644960047,3.44354,2613.6,2613.1,5.98234259]
[1729644960389,0.04493022,2613.2,2613.1,4.21397]
[1729644960619,3.44354,2613.6,2613.1,4.21397]
[1729644960821,0.04493198,2613.2,2613.1,4.21397]
[1729644961127,1.68904041,2613.4,2613.1,0.7698]
[1729644961486,0.04493775,2613.3,2613.1,0.7698]
[1729644969547,3.44406,2613.2,2612.9,0.7857]
[1729644969743,5.13310041,2613.2,2612.8,0.80203247]
[1729644970045,0.04351757,2613.1,2612.7,5.58242247]
[1729644970244,3.48774757,2613.1,2612.7,0.7857]
[1729644970403,5.13335041,2613.0,2612.7,0.7857]
[1729644970611,5.13368041,2612.8,2612.5,0.7857]
[1729644970932,0.04366232,2612.7,2612.5,0.7857]
[1729644971131,0.04366232,2612.7,2612.5,4.30716703]
[1729644971316,4.21971,2613.1,2612.5,5.1091995]
[1729644971517,0.04365921,2612.6,2612.5,5.1091995]
[1729644971868,0.04365921,2612.6,2612.5,6.24449762]
[1729644972047,1.68904041,2613.0,2612.5,6.24449762]
[1729644972351,0.04365921,2612.6,2612.5,6.24449762]
[1729644972531,5.13337041,2613.0,2612.5,6.24449762]
[1729644972846,5.13337041,2613.0,2612.5,5.44246515]
[1729644973048,0.04366854,2612.9,2612.6,4.41371776]
[1729644973348,3.0,2613.6,2612.9,3.44443]
[1729644973349,3.4437,2613.5,2612.9,3.44443]
[1729644973547,3.44373,2613.5,2613.0,3.52084186]
[1729644973750,3.44373,2613.5,2613.1,0.73476147]
[1729644973906,5.13277041,2613.5,2613.1,4.17893147]
[1729644974609,5.13277041,2613.5,2613.1,0.73476147]
[1729644974835,3.44373,2613.5,2613.1,0.73476147]
[1729644975037,2.46444041,2613.6,2613.1,0.73476147]
[1729644975241,1.68904041,2613.5,2613.1,3.44417]
[1729644975666,5.13273041,2613.5,2613.0,4.24626247]
[1729644975869,5.13273041,2613.5,2613.0,7.76702275]
[1729644976058,5.13273041,2613.5,2613.0,4.24626247]
[1729644976244,5.13273041,2613.5,2613.0,4.32279275]
[1729644976447,5.13273041,2613.5,2613.1,0.68615415]
[1729644976847,1.68904041,2613.4,2613.1,0.68615415]
[1729644977646,5.13273041,2613.5,2613.1,0.68615415]
[1729644978345,5.13256041,2613.6,2613.2,3.52056027]
[1729644978546,5.13256041,2613.6,2613.3,0.7857]
[1729644978746,1.68904041,2613.6,2613.3,0.7857]
[1729644979076,4.21875,2613.8,2613.3,4.80901869]
[1729644979273,1.68904041,2613.7,2613.3,4.88554223]
[1729644979599,1.68904041,2613.7,2613.3,1.44166223]
[1729644979778,5.13244041,2613.7,2613.3,1.44166223]
[1729644980088,1.68904041,2613.6,2613.3,1.44166223]
[1729644980289,1.68904041,2613.6,2613.4,0.56876647]
[1729644980594,5.13258041,2613.6,2613.4,0.56876647]
[1729644982051,0.04367204,2613.5,2613.4,0.56876647]
[1729644982877,1.73271245,2613.5,2613.4,0.56876647]
[1729644984103,0.04367204,2613.5,2613.4,0.56876647]
[1729644984712,5.13243041,2613.7,2613.4,0.56876647]
[1729644984882,0.04367515,2613.6,2613.4,0.56876647]
[1729644985622,0.04367515,2613.6,2613.5,0.28124611]
[1729644985911,1.68904041,2613.9,2613.5,0.28124611]
[1729644986119,0.04227673,2613.8,2613.5,1.08327858]
[1729644986300,0.04227673,2613.8,2613.5,3.80131631]
[1729644986466,5.13210041,2614.0,2613.6,1.64308353]
[1729644986674,1.73132025,2613.9,2613.6,1.64308353]
[1729644987717,3.44239,2614.5,2613.6,1.64308353]
[1729644987718,0.8222,2614.9,2614.1,3.44286]
[1729644988019,0.8222,2615.2,2614.8,0.7815]
[1729644988516,3.44162,2615.1,2614.8,0.7815]
[1729644988720,1.68904041,2615.0,2614.8,0.7815]
[1729644990018,1.68904041,2615.1,2614.8,0.7815]
[1729644990172,0.8222,2615.2,2614.8,1.58338017]
[1729644990173,1.68904041,2615.0,2614.8,1.58338017]
[1729644990372,0.8222,2615.2,2614.8,0.7815]
[1729644990712,4.26363,2615.2,2614.8,0.7815]
[1729644990883,0.8222,2615.2,2614.8,4.22341]
[1729644991085,3.44137,2615.3,2614.8,4.22336]
[1729644992910,6.88223,2615.5,2614.9,3.44176]
[1729644993084,3.44116,2615.4,2614.9,3.51824055]
[1729644993293,3.44116,2615.4,2614.9,3.44176]
[1729644993877,3.44116,2615.4,2614.9,6.88349]
[1729644994187,3.44109,2615.5,2614.8,1.55569526]
[1729644994515,3.4413,2615.3,2614.8,1.55569526]
[1729644995017,3.44142,2615.2,2614.8,1.55569526]
[1729644995378,0.03961502,2615.1,2614.8,1.55569526]
[1729644995688,0.03961502,2615.1,2614.9,0.49976453]
[1729644996196,0.03961502,2615.1,2614.8,0.7815]
[1729644996400,3.44168,2615.0,2614.8,0.7815]
[1729644996782,0.0396088,2614.9,2614.8,0.7815]
[1729644997196,3.44156,2615.1,2614.8,0.7815]
[1729644997423,0.0396088,2614.9,2614.8,0.7815]
[1729644997626,3.44156,2615.1,2614.8,1.20387]
[1729644998125,0.03961191,2615.0,2614.8,1.20387]
[1729645001850,0.0396088,2614.9,2614.8,1.20387]
[1729645002058,6.8829,2615.2,2614.8,1.20387]
[1729645002240,0.03961502,2615.1,2614.8,1.20387]
[1729645002443,3.48116502,2615.1,2614.8,1.20387]
[1729645003064,3.4417,2615.0,2614.8,0.7815]
[1729645003216,0.0396088,2614.9,2614.8,0.7815]
[1729645003763,3.44155,2615.1,2614.8,0.7815]
[1729645004561,0.03967764,2615.0,2614.7,0.55]
[1729645007119,0.03967764,2615.0,2614.7,3.99207]
[1729645007318,0.03967764,2615.0,2614.8,0.476617]
[1729645009879,0.03967453,2614.9,2614.8,0.476617]
[1729645010089,0.7749,2615.2,2614.8,0.476617]
[1729645010249,1.68610175,2615.1,2614.7,3.99207]
[1729645010449,0.03967764,2615.0,2614.7,3.99207]
[1729645013479,1.68610175,2615.1,2614.7,3.99207]
[1729645013687,2.49850175,2614.8,2614.3,0.7566]
[1729645013998,2.49850175,2614.8,2613.8,4.19984]
[1729645013999,4.25509,2614.3,2613.8,4.19984]
[1729645014159,1.68610175,2614.0,2613.8,0.7566]
[1729645014485,0.8124,2614.3,2613.9,3.4431]
[1729645014654,0.8124,2614.3,2613.9,4.207399]
[1729645014863,1.68610175,2614.2,2613.9,0.764299]
[1729645015894,5.94110175,2614.3,2613.9,0.764299]
[1729645016255,1.68610175,2614.2,2613.9,0.764299]
[1729645016859,5.94110175,2614.3,2613.9,0.764299]
[1729645018493,1.68610175,2614.2,2613.9,0.764299]
[1729645021896,5.94110175,2614.3,2613.9,0.764299]
[1729645022267,5.94110175,2614.3,2614.0,0.8407339]
[1729645022980,5.94110175,2614.3,2613.8,7.64297]
[1729645023212,5.94110175,2614.3,2613.8,4.19978]
[1729645023498,1.68610175,2614.2,2613.8,4.19978]
[1729645023992,5.94110175,2614.3,2613.8,4.19978]
[1729645025180,5.94110175,2614.3,2613.8,7.64296]
[1729645025486,5.94110175,2614.3,2613.9,0.764296]
[1729645027157,5.94110175,2614.3,2613.8,4.19978]
[1729645027501,1.72562116,2614.2,2613.8,4.19978]
[1729645027884,5.16836116,2614.2,2613.8,4.19978]
[1729645028908,5.16836116,2614.2,2613.8,0.7566]
[1729645029400,5.16836116,2614.2,2613.8,4.19984]
[1729645029739,5.16836116,2614.2,2613.8,5.04435402]
[1729645030299,5.16836116,2614.2,2613.8,1.60111402]
[1729645031302,1.72562116,2614.2,2613.8,1.60111402]
[1729645031504,0.03951941,2614.2,2613.9,0.07650514]
[1729645031814,2.49850175,2614.3,2613.9,0.07650514]
[1729645032014,0.03932914,2614.1,2613.9,0.07650514]
[1729645032213,2.49850175,2614.3,2613.9,1.01311107]
[1729645032435,0.03932603,2614.0,2613.9,1.01311107]
[1729645032634,1.68610175,2614.3,2613.9,1.01311107]
[1729645032807,0.03932603,2614.0,2613.9,1.01311107]
[1729645033348,5.12870175,2614.3,2613.9,1.01311107]
[1729645033553,0.03933225,2614.2,2613.9,1.01311107]
[1729645033714,5.12870175,2614.3,2613.9,1.01311107]
[1729645033913,0.03933225,2614.2,2613.9,1.01311107]
[1729645034413,5.12870175,2614.3,2613.9,1.01311107]
[1729645034646,0.03932914,2614.1,2613.9,1.01311107]
[1729645034966,0.03932603,2614.0,2613.9,1.01311107]
[1729645035164,5.12870175,2614.3,2613.9,1.01311107]
[1729645035312,0.03933225,2614.2,2613.9,1.01311107]